[Event "Titled Tuesday Blitz July 4 Early 2023"]
[White "BebeBonito2022"]
[Black "UNSTOPPABLE_LEGEND"]
[WhiteElo "2161"]
[BlackElo "2470"]
[Result "0-1"]
[Round "2"]
[TimeControl "180+2"]
[Date "2023.07.04"]
[WhiteClock "0:00:00"]
[BlackClock "0:00:23"]
[Board "215"]

1. d4 {[%clk 0:03:00]}  Nf6 {[%clk 0:02:31]} 2. c4 {[%clk 0:03:00]}  c6 {[%clk 0:02:30]} 3. Nc3 {[%clk 0:03:00]}  d5 {[%clk 0:02:30]} 4. e3 {[%clk 0:03:00]}  e6 {[%clk 0:02:28]} 5. Nf3 {[%clk 0:03:00]}  Nbd7 {[%clk 0:02:28]} 6. Qc2 {[%clk 0:03:00]}  Bd6 {[%clk 0:02:28]} 7. b3 {[%clk 0:02:57]}  O-O {[%clk 0:02:28]} 8. Bb2 {[%clk 0:02:57]}  Re8 {[%clk 0:02:27]} 9. Be2 {[%clk 0:02:56]}  dxc4 {[%clk 0:02:20]} 10. Bxc4 {[%clk 0:02:47]}  e5 {[%clk 0:02:20]} 11. Ng5 {[%clk 0:02:43]}  Rf8 {[%clk 0:02:10]} 12. O-O-O {[%clk 0:02:41]}  h6 {[%clk 0:02:06]} 13. Nge4 {[%clk 0:02:40]}  Bc7 {[%clk 0:02:01]} 14. Nxf6+ {[%clk 0:02:35]}  Qxf6 {[%clk 0:02:02]} 15. Ne4 {[%clk 0:02:22]}  Qe7 {[%clk 0:01:58]} 16. Rhe1 {[%clk 0:02:01]}  Nb6 {[%clk 0:01:52]} 17. Bd3 {[%clk 0:01:57]}  Nd5 {[%clk 0:01:52]} 18. a3 {[%clk 0:01:56]}  f5 {[%clk 0:01:50]} 19. Nc3 {[%clk 0:01:41]}  e4 {[%clk 0:01:49]} 20. Bc4 {[%clk 0:01:22]}  Be6 {[%clk 0:01:48]} 21. f3 {[%clk 0:01:22]}  exf3 {[%clk 0:01:43]} 22. gxf3 {[%clk 0:01:11]}  Rae8 {[%clk 0:01:29]} 23. Kb1 {[%clk 0:00:49]}  Qf7 {[%clk 0:01:05]} 24. e4 {[%clk 0:00:40]}  Nxc3+ {[%clk 0:01:03]} 25. Qxc3 {[%clk 0:00:38]}  Bxc4 {[%clk 0:00:56]} 26. bxc4 {[%clk 0:00:39]}  fxe4 {[%clk 0:00:56]} 27. fxe4 {[%clk 0:00:35]}  Qf3 {[%clk 0:00:55]} 28. Rd3 {[%clk 0:00:31]}  Qg2 {[%clk 0:00:54]} 29. e5 {[%clk 0:00:20]}  Rf2 {[%clk 0:00:42]} 30. Rg3 {[%clk 0:00:11]}  Qxh2 {[%clk 0:00:41]} 31. Reg1 {[%clk 0:00:10]}  Re7 {[%clk 0:00:25]} 32. e6 {[%clk 0:00:07]}  Bxg3 {[%clk 0:00:23]} 33. Rxg3 {[%clk 0:00:00]}  Rxb2+ {[%clk 0:00:23]} 0-1


[Site "https://www.chess.com"]

[Event "Titled Tuesday Blitz July 4 Early 2023"]
[White "Eynullayev, Atilla"]
[Black "Hartikainen, Jarmo"]
[WhiteFideId "13413570"]
[BlackFideId "503134"]
[WhiteElo "2469"]
[BlackElo "2154"]
[Result "1-0"]
[Round "2"]
[TimeControl "180+2"]
[Date "2023.07.04"]
[WhiteClock "0:00:14"]
[BlackClock "0:00:07"]
[Board "216"]

1. e4 {[%clk 0:03:00]}  c5 {[%clk 0:02:59]} 2. Nf3 {[%clk 0:03:01]}  Nc6 {[%clk 0:02:59]} 3. Bb5 {[%clk 0:03:01]}  e6 {[%clk 0:03:00]} 4. O-O {[%clk 0:03:01]}  Nge7 {[%clk 0:03:00]} 5. Re1 {[%clk 0:03:02]}  a6 {[%clk 0:03:00]} 6. Bf1 {[%clk 0:03:03]}  d6 {[%clk 0:03:01]} 7. d3 {[%clk 0:03:03]}  Ng6 {[%clk 0:03:01]} 8. g3 {[%clk 0:03:04]}  Be7 {[%clk 0:03:01]} 9. Bg2 {[%clk 0:03:04]}  O-O {[%clk 0:02:57]} 10. c3 {[%clk 0:03:05]}  e5 {[%clk 0:02:21]} 11. Na3 {[%clk 0:02:58]}  b5 {[%clk 0:02:15]} 12. Nc2 {[%clk 0:02:58]}  f5 {[%clk 0:02:03]} 13. exf5 {[%clk 0:01:56]}  Bxf5 {[%clk 0:02:02]} 14. Ne3 {[%clk 0:01:57]}  Be6 {[%clk 0:01:30]} 15. d4 {[%clk 0:01:48]}  cxd4 {[%clk 0:01:20]} 16. cxd4 {[%clk 0:01:48]}  e4 {[%clk 0:01:13]} 17. Nd2 {[%clk 0:01:49]}  d5 {[%clk 0:01:13]} 18. Nb3 {[%clk 0:01:49]}  Bf6 {[%clk 0:01:11]} 19. Nc2 {[%clk 0:01:06]}  Qb6 {[%clk 0:00:18]} 20. Be3 {[%clk 0:01:04]}  Rad8 {[%clk 0:00:15]} 21. Nc5 {[%clk 0:01:04]}  Bc8 {[%clk 0:00:15]} 22. Rc1 {[%clk 0:00:43]}  Nge7 {[%clk 0:00:15]} 23. Qd2 {[%clk 0:00:22]}  Nf5 {[%clk 0:00:15]} 24. Bf4 {[%clk 0:00:23]}  Ncxd4 {[%clk 0:00:10]} 25. Nxd4 {[%clk 0:00:23]}  Nxd4 {[%clk 0:00:10]} 26. Qb4 {[%clk 0:00:15]}  Ne6 {[%clk 0:00:09]} 27. Nxe6 {[%clk 0:00:14]}  Bxe6 {[%clk 0:00:09]} 28. Bc7 {[%clk 0:00:14]}  Rc8 {[%clk 0:00:09]} 29. Bxb6 {[%clk 0:00:14]}  Rc4 {[%clk 0:00:09]} 30. Rxc4 {[%clk 0:00:13]}  bxc4 {[%clk 0:00:09]} 31. Qd6 {[%clk 0:00:14]}  Bf7 {[%clk 0:00:09]} 32. Bh3 {[%clk 0:00:14]}  Rd8 {[%clk 0:00:09]} 33. Bxd8 {[%clk 0:00:14]}  Be7 {[%clk 0:00:07]} 34. Qxe7 {[%clk 0:00:14]} 1-0


[Site "https://www.chess.com"]

[Event "Titled Tuesday Blitz July 4 Early 2023"]
[White "Fiedorek, Michal"]
[Black "Torres Dominguez, David"]
[WhiteFideId "1199528"]
[BlackFideId "2220857"]
[WhiteElo "2466"]
[BlackElo "2153"]
[Result "1-0"]
[Round "2"]
[TimeControl "180+2"]
[Date "2023.07.04"]
[WhiteClock "0:00:24"]
[BlackClock "0:00:00"]
[Board "217"]

1. Nf3 {[%clk 0:03:00]}  d5 {[%clk 0:02:58]} 2. d4 {[%clk 0:02:58]}  Nf6 {[%clk 0:02:57]} 3. Bf4 {[%clk 0:02:57]}  c6 {[%clk 0:02:56]} 4. c3 {[%clk 0:02:53]}  Bf5 {[%clk 0:02:54]} 5. Nbd2 {[%clk 0:02:52]}  e6 {[%clk 0:02:54]} 6. Qb3 {[%clk 0:02:52]}  Qb6 {[%clk 0:02:54]} 7. h3 {[%clk 0:02:50]}  h6 {[%clk 0:02:50]} 8. e3 {[%clk 0:02:50]}  Nbd7 {[%clk 0:02:50]} 9. Be2 {[%clk 0:02:49]}  Be7 {[%clk 0:02:47]} 10. O-O {[%clk 0:02:48]}  O-O {[%clk 0:02:46]} 11. Ne5 {[%clk 0:02:47]}  Nxe5 {[%clk 0:02:45]} 12. Bxe5 {[%clk 0:02:47]}  Nd7 {[%clk 0:02:45]} 13. Bh2 {[%clk 0:02:47]}  c5 {[%clk 0:02:38]} 14. Qxb6 {[%clk 0:02:41]}  Nxb6 {[%clk 0:02:36]} 15. dxc5 {[%clk 0:02:37]}  Bxc5 {[%clk 0:02:36]} 16. c4 {[%clk 0:02:38]}  dxc4 {[%clk 0:02:31]} 17. Nxc4 {[%clk 0:02:38]}  Nxc4 {[%clk 0:02:31]} 18. Bxc4 {[%clk 0:02:38]}  Rac8 {[%clk 0:02:32]} 19. Rac1 {[%clk 0:02:36]}  Rfd8 {[%clk 0:02:21]} 20. Be5 {[%clk 0:02:23]}  Bb6 {[%clk 0:02:10]} 21. Be2 {[%clk 0:02:15]}  f6 {[%clk 0:01:59]} 22. Bc3 {[%clk 0:02:13]}  Be4 {[%clk 0:01:54]} 23. Rfd1 {[%clk 0:02:11]}  Bc6 {[%clk 0:01:52]} 24. Bc4 {[%clk 0:02:08]}  Kf7 {[%clk 0:01:51]} 25. Be2 {[%clk 0:01:58]}  Rxd1+ {[%clk 0:01:49]} 26. Rxd1 {[%clk 0:01:58]}  Rd8 {[%clk 0:01:49]} 27. Rxd8 {[%clk 0:01:58]}  Bxd8 {[%clk 0:01:50]} 28. Kf1 {[%clk 0:01:58]}  Bd5 {[%clk 0:01:47]} 29. a3 {[%clk 0:01:56]}  e5 {[%clk 0:01:47]} 30. f3 {[%clk 0:01:52]}  Ke6 {[%clk 0:01:47]} 31. e4 {[%clk 0:01:50]}  Bb3 {[%clk 0:01:46]} 32. Ke1 {[%clk 0:01:48]}  Be7 {[%clk 0:01:45]} 33. Kd2 {[%clk 0:01:44]}  a6 {[%clk 0:01:45]} 34. g3 {[%clk 0:01:40]}  Bc5 {[%clk 0:01:40]} 35. f4 {[%clk 0:01:36]}  Ba4 {[%clk 0:01:30]} 36. Bc4+ {[%clk 0:01:30]}  Ke7 {[%clk 0:01:26]} 37. fxe5 {[%clk 0:01:30]}  fxe5 {[%clk 0:01:26]} 38. Bxe5 {[%clk 0:01:29]}  Bd6 {[%clk 0:01:17]} 39. Bxg7 {[%clk 0:01:27]}  Bxg3 {[%clk 0:01:17]} 40. Bxh6 {[%clk 0:01:26]}  Bd7 {[%clk 0:01:17]} 41. Bf1 {[%clk 0:01:25]}  Ke6 {[%clk 0:01:17]} 42. Ke3 {[%clk 0:01:21]}  Be5 {[%clk 0:01:14]} 43. h4 {[%clk 0:01:17]}  Bxb2 {[%clk 0:01:12]} 44. Bh3+ {[%clk 0:01:17]}  Ke7 {[%clk 0:01:12]} 45. Bg5+ {[%clk 0:01:17]}  Ke8 {[%clk 0:01:11]} 46. Bxd7+ {[%clk 0:01:16]}  Kxd7 {[%clk 0:01:12]} 47. a4 {[%clk 0:01:16]}  b5 {[%clk 0:01:11]} 48. axb5 {[%clk 0:01:10]}  axb5 {[%clk 0:01:12]} 49. Kd3 {[%clk 0:01:07]}  Ke6 {[%clk 0:01:12]} 50. h5 {[%clk 0:01:07]}  Bh8 {[%clk 0:01:05]} 51. Bd2 {[%clk 0:01:05]}  Bg7 {[%clk 0:00:53]} 52. Bc3 {[%clk 0:00:57]}  Bh6 {[%clk 0:00:50]} 53. Bd4 {[%clk 0:00:58]}  Bg5 {[%clk 0:00:42]} 54. Be3 {[%clk 0:00:53]}  Kf6 {[%clk 0:00:23]} 55. e5+ {[%clk 0:00:24]}  Kf5 {[%clk 0:00:18]} 56. Bxg5 {[%clk 0:00:24]}  Kxg5 {[%clk 0:00:00]} 57. e6 {[%clk 0:00:24]} 1-0


[Site "https://www.chess.com"]

[Event "Titled Tuesday Blitz July 4 Early 2023"]
[White "Balla, Tamas-Kristof"]
[Black "Sanchez, Robert"]
[WhiteFideId "1208497"]
[BlackFideId "2034360"]
[WhiteElo "2464"]
[BlackElo "2135"]
[Result "1-0"]
[Round "2"]
[TimeControl "180+2"]
[Date "2023.07.04"]
[WhiteClock "0:00:12"]
[BlackClock "0:00:34"]
[Board "218"]

1. e4 {[%clk 0:03:00]}  e6 {[%clk 0:02:59]} 2. d4 {[%clk 0:03:00]}  d5 {[%clk 0:03:00]} 3. Nd2 {[%clk 0:03:01]}  Nf6 {[%clk 0:03:00]} 4. e5 {[%clk 0:02:59]}  Nfd7 {[%clk 0:03:00]} 5. Bd3 {[%clk 0:02:59]}  c5 {[%clk 0:03:01]} 6. c3 {[%clk 0:03:00]}  Nc6 {[%clk 0:03:01]} 7. Ne2 {[%clk 0:03:00]}  cxd4 {[%clk 0:03:01]} 8. cxd4 {[%clk 0:03:01]}  f6 {[%clk 0:03:01]} 9. exf6 {[%clk 0:03:01]}  Nxf6 {[%clk 0:03:02]} 10. O-O {[%clk 0:02:53]}  Bd6 {[%clk 0:03:02]} 11. Nf3 {[%clk 0:02:53]}  Qc7 {[%clk 0:03:02]} 12. h3 {[%clk 0:02:54]}  O-O {[%clk 0:03:00]} 13. Bg5 {[%clk 0:02:53]}  Nh5 {[%clk 0:02:56]} 14. Nc3 {[%clk 0:02:45]}  a6 {[%clk 0:02:54]} 15. Rc1 {[%clk 0:02:42]}  Nf4 {[%clk 0:02:44]} 16. Bb1 {[%clk 0:02:33]}  Bd7 {[%clk 0:02:39]} 17. Re1 {[%clk 0:02:24]}  Rf7 {[%clk 0:02:26]} 18. Ne5 {[%clk 0:01:54]}  Bxe5 {[%clk 0:02:23]} 19. dxe5 {[%clk 0:01:50]}  Qb6 {[%clk 0:02:11]} 20. Qd2 {[%clk 0:01:27]}  Raf8 {[%clk 0:02:06]} 21. Na4 {[%clk 0:01:19]}  Qa7 {[%clk 0:01:12]} 22. Nc5 {[%clk 0:01:10]}  Bc8 {[%clk 0:01:11]} 23. Bh4 {[%clk 0:01:09]}  Ng6 {[%clk 0:00:59]} 24. Bg3 {[%clk 0:01:08]}  Nce7 {[%clk 0:00:49]} 25. Qg5 {[%clk 0:00:44]}  Nf5 {[%clk 0:00:48]} 26. h4 {[%clk 0:00:27]}  Nge7 {[%clk 0:00:37]} 27. h5 {[%clk 0:00:25]}  h6 {[%clk 0:00:36]} 28. Qg4 {[%clk 0:00:21]}  Nxg3 {[%clk 0:00:36]} 29. Qxg3 {[%clk 0:00:15]}  Nf5 {[%clk 0:00:37]} 30. Qg6 {[%clk 0:00:14]}  Qb6 {[%clk 0:00:37]} 31. Rc3 {[%clk 0:00:12]}  Ne7 {[%clk 0:00:34]} 32. Qh7# {[%clk 0:00:12]} 1-0


[Site "https://www.chess.com"]

[Event "Titled Tuesday Blitz July 4 Early 2023"]
[White "Heinemann, Josefine"]
[Black "campochess"]
[WhiteFideId "12900460"]
[WhiteElo "2461"]
[BlackElo "2127"]
[Result "1/2-1/2"]
[Round "2"]
[TimeControl "180+2"]
[Date "2023.07.04"]
[WhiteClock "0:00:18"]
[BlackClock "0:00:03"]
[Board "222"]

1. d4 {[%clk 0:02:54]}  Nf6 {[%clk 0:02:55]} 2. c4 {[%clk 0:02:53]}  c5 {[%clk 0:02:54]} 3. Nf3 {[%clk 0:02:52]}  cxd4 {[%clk 0:02:53]} 4. Nxd4 {[%clk 0:02:51]}  g6 {[%clk 0:02:53]} 5. Nc3 {[%clk 0:02:51]}  Bg7 {[%clk 0:02:53]} 6. g3 {[%clk 0:02:50]}  O-O {[%clk 0:02:53]} 7. Bg2 {[%clk 0:02:50]}  Nc6 {[%clk 0:02:52]} 8. Nxc6 {[%clk 0:02:48]}  dxc6 {[%clk 0:02:51]} 9. O-O {[%clk 0:02:47]}  Qa5 {[%clk 0:02:49]} 10. Bf4 {[%clk 0:02:44]}  Be6 {[%clk 0:02:47]} 11. Qb3 {[%clk 0:02:40]}  b5 {[%clk 0:02:44]} 12. Bxc6 {[%clk 0:02:39]}  Bxc4 {[%clk 0:02:44]} 13. Qc2 {[%clk 0:02:39]}  Rac8 {[%clk 0:02:42]} 14. Bb7 {[%clk 0:02:38]}  Rcd8 {[%clk 0:02:21]} 15. a3 {[%clk 0:02:33]}  Ng4 {[%clk 0:02:03]} 16. h3 {[%clk 0:02:19]}  Ne5 {[%clk 0:02:02]} 17. Bg2 {[%clk 0:02:17]}  Qb6 {[%clk 0:01:52]} 18. Rad1 {[%clk 0:02:14]}  Rxd1 {[%clk 0:01:48]} 19. Rxd1 {[%clk 0:02:15]}  Rd8 {[%clk 0:01:47]} 20. Be3 {[%clk 0:02:12]}  Rxd1+ {[%clk 0:01:45]} 21. Qxd1 {[%clk 0:02:13]}  Qc7 {[%clk 0:01:42]} 22. b3 {[%clk 0:01:52]}  Nd7 {[%clk 0:01:23]} 23. bxc4 {[%clk 0:01:47]}  Bxc3 {[%clk 0:01:22]} 24. cxb5 {[%clk 0:01:47]}  Ba5 {[%clk 0:01:12]} 25. Qc1 {[%clk 0:01:36]}  Qb8 {[%clk 0:01:01]} 26. Qc6 {[%clk 0:01:32]}  Ne5 {[%clk 0:00:54]} 27. Qa8 {[%clk 0:01:31]}  Qxa8 {[%clk 0:00:53]} 28. Bxa8 {[%clk 0:01:32]}  Bb6 {[%clk 0:00:52]} 29. Bd2 {[%clk 0:01:22]}  Bc5 {[%clk 0:00:43]} 30. a4 {[%clk 0:01:19]}  Nc4 {[%clk 0:00:43]} 31. Be1 {[%clk 0:01:17]}  Nb6 {[%clk 0:00:43]} 32. Be4 {[%clk 0:01:05]}  Nxa4 {[%clk 0:00:42]} 33. Kf1 {[%clk 0:01:04]}  Nb6 {[%clk 0:00:37]} 34. Bb1 {[%clk 0:00:59]}  Nc4 {[%clk 0:00:37]} 35. e3 {[%clk 0:00:53]}  Nd6 {[%clk 0:00:37]} 36. Bd3 {[%clk 0:00:52]}  f5 {[%clk 0:00:35]} 37. Ke2 {[%clk 0:00:50]}  e5 {[%clk 0:00:35]} 38. Kd1 {[%clk 0:00:44]}  Kf8 {[%clk 0:00:35]} 39. Kc2 {[%clk 0:00:44]}  Ke7 {[%clk 0:00:35]} 40. Kb3 {[%clk 0:00:45]}  Nc8 {[%clk 0:00:34]} 41. Bc3 {[%clk 0:00:45]}  Kd6 {[%clk 0:00:33]} 42. Bc4 {[%clk 0:00:44]}  Nb6 {[%clk 0:00:32]} 43. Bg8 {[%clk 0:00:44]}  h6 {[%clk 0:00:30]} 44. Bh7 {[%clk 0:00:44]}  Ke6 {[%clk 0:00:20]} 45. Bxg6 {[%clk 0:00:44]}  Nd5 {[%clk 0:00:20]} 46. Be1 {[%clk 0:00:38]}  Nf6 {[%clk 0:00:17]} 47. Kc4 {[%clk 0:00:34]}  Bb6 {[%clk 0:00:17]} 48. h4 {[%clk 0:00:24]}  e4 {[%clk 0:00:14]} 49. h5 {[%clk 0:00:23]}  Ng4 {[%clk 0:00:13]} 50. Be8 {[%clk 0:00:19]}  Ne5+ {[%clk 0:00:14]} 51. Kb3 {[%clk 0:00:19]}  Nd3 {[%clk 0:00:13]} 52. Bc3 {[%clk 0:00:19]}  Nxf2 {[%clk 0:00:13]} 53. Bg7 {[%clk 0:00:19]}  Ng4 {[%clk 0:00:13]} 54. Bg6 {[%clk 0:00:18]}  Bc7 {[%clk 0:00:12]} 55. Kc4 {[%clk 0:00:18]}  Bxg3 {[%clk 0:00:12]} 56. Bd4 {[%clk 0:00:18]}  Bf2 {[%clk 0:00:11]} 57. Bxa7 {[%clk 0:00:18]}  Bxe3 {[%clk 0:00:11]} 58. Bb8 {[%clk 0:00:18]}  Bb6 {[%clk 0:00:08]} 59. Bg3 {[%clk 0:00:17]}  Ne3+ {[%clk 0:00:08]} 60. Kb3 {[%clk 0:00:16]}  Nd5 {[%clk 0:00:08]} 61. Be1 {[%clk 0:00:16]}  Ne7 {[%clk 0:00:07]} 62. Bd2 {[%clk 0:00:15]}  Nxg6 {[%clk 0:00:07]} 63. hxg6 {[%clk 0:00:15]}  Kf6 {[%clk 0:00:07]} 64. Bxh6 {[%clk 0:00:14]}  Kxg6 {[%clk 0:00:07]} 65. Bf4 {[%clk 0:00:15]}  Kh5 {[%clk 0:00:07]} 66. Kc4 {[%clk 0:00:15]}  Kg4 {[%clk 0:00:07]} 67. Be5 {[%clk 0:00:15]}  f4 {[%clk 0:00:07]} 68. Bd4 {[%clk 0:00:16]}  Bxd4 {[%clk 0:00:05]} 69. Kxd4 {[%clk 0:00:17]}  Kf3 {[%clk 0:00:05]} 70. b6 {[%clk 0:00:17]}  e3 {[%clk 0:00:06]} 71. b7 {[%clk 0:00:18]}  e2 {[%clk 0:00:06]} 72. b8=Q {[%clk 0:00:18]}  e1=Q {[%clk 0:00:06]} 73. Qb7+ {[%clk 0:00:19]}  Kf2 {[%clk 0:00:06]} 74. Qb2+ {[%clk 0:00:18]}  Qe2 {[%clk 0:00:05]} 75. Qb1 {[%clk 0:00:18]}  Qe3+ {[%clk 0:00:05]} 76. Kd5 {[%clk 0:00:18]}  f3 {[%clk 0:00:05]} 77. Qc2+ {[%clk 0:00:17]}  Qe2 {[%clk 0:00:05]} 78. Qc5+ {[%clk 0:00:18]}  Kf1 {[%clk 0:00:05]} 79. Qc1+ {[%clk 0:00:18]}  Qe1 {[%clk 0:00:04]} 80. Qc4+ {[%clk 0:00:18]}  Qe2 {[%clk 0:00:04]} 81. Qc1+ {[%clk 0:00:18]}  Kf2 {[%clk 0:00:04]} 82. Qc5+ {[%clk 0:00:17]}  Qe3 {[%clk 0:00:04]} 83. Qc2+ {[%clk 0:00:17]}  Kf1 {[%clk 0:00:03]} 84. Qc1+ {[%clk 0:00:18]}  Qe1 {[%clk 0:00:03]} 85. Qc4+ {[%clk 0:00:18]}  Qe2 {[%clk 0:00:03]} 86. Qc1+ {[%clk 0:00:18]} 1/2-1/2


[Site "https://www.chess.com"]

[Event "Titled Tuesday Blitz July 4 Early 2023"]
[White "Suduvasachmatai"]
[Black "Baches Garcia, Guillermo"]
[BlackFideId "2209764"]
[WhiteElo "2121"]
[BlackElo "2459"]
[Result "0-1"]
[Round "2"]
[TimeControl "180+2"]
[Date "2023.07.04"]
[WhiteClock "0:00:06"]
[BlackClock "0:00:25"]
[Board "223"]

1. e4 {[%clk 0:03:00]}  c5 {[%clk 0:02:59]} 2. c3 {[%clk 0:03:00]}  d5 {[%clk 0:02:59]} 3. exd5 {[%clk 0:03:00]}  Qxd5 {[%clk 0:02:59]} 4. d4 {[%clk 0:03:01]}  Nc6 {[%clk 0:03:00]} 5. Nf3 {[%clk 0:03:02]}  Bg4 {[%clk 0:03:00]} 6. Be2 {[%clk 0:03:02]}  cxd4 {[%clk 0:03:00]} 7. cxd4 {[%clk 0:03:02]}  e6 {[%clk 0:03:00]} 8. Nc3 {[%clk 0:03:02]}  Bb4 {[%clk 0:03:00]} 9. O-O {[%clk 0:03:03]}  Qa5 {[%clk 0:02:59]} 10. d5 {[%clk 0:03:03]}  exd5 {[%clk 0:02:55]} 11. Qxd5 {[%clk 0:02:58]}  Bxc3 {[%clk 0:02:41]} 12. Qe4+ {[%clk 0:02:57]}  Be6 {[%clk 0:02:37]} 13. bxc3 {[%clk 0:02:55]}  Nf6 {[%clk 0:02:36]} 14. Qh4 {[%clk 0:02:47]}  O-O {[%clk 0:02:32]} 15. Bg5 {[%clk 0:02:43]}  Nd5 {[%clk 0:02:26]} 16. Bd3 {[%clk 0:02:42]}  f5 {[%clk 0:02:10]} 17. Rfe1 {[%clk 0:02:36]}  Rae8 {[%clk 0:02:09]} 18. Bc4 {[%clk 0:02:30]}  Qxc3 {[%clk 0:02:05]} 19. Rac1 {[%clk 0:02:29]}  Qa5 {[%clk 0:01:35]} 20. Bd2 {[%clk 0:02:22]}  Qd8 {[%clk 0:01:27]} 21. Qxd8 {[%clk 0:02:16]}  Nxd8 {[%clk 0:01:27]} 22. Rxe6 {[%clk 0:02:11]}  Nxe6 {[%clk 0:01:26]} 23. Bxd5 {[%clk 0:02:10]}  Kh8 {[%clk 0:01:22]} 24. Bb4 {[%clk 0:02:07]}  Rf6 {[%clk 0:01:16]} 25. Ne5 {[%clk 0:02:00]}  Nd4 {[%clk 0:01:00]} 26. Kf1 {[%clk 0:01:35]}  h6 {[%clk 0:00:49]} 27. f4 {[%clk 0:01:20]}  Rb6 {[%clk 0:00:45]} 28. Bc5 {[%clk 0:01:10]}  Rc8 {[%clk 0:00:43]} 29. Ng6+ {[%clk 0:00:48]}  Rxg6 {[%clk 0:00:37]} 30. Re1 {[%clk 0:00:26]}  Nc6 {[%clk 0:00:28]} 31. g3 {[%clk 0:00:19]}  Rf6 {[%clk 0:00:28]} 32. Be7 {[%clk 0:00:13]}  Nxe7 {[%clk 0:00:27]} 33. Rxe7 {[%clk 0:00:14]}  b5 {[%clk 0:00:26]} 34. Rxa7 {[%clk 0:00:13]}  Rd6 {[%clk 0:00:26]} 35. Bb3 {[%clk 0:00:13]}  Kh7 {[%clk 0:00:26]} 36. Kg2 {[%clk 0:00:13]}  Rd2+ {[%clk 0:00:26]} 37. Kh3 {[%clk 0:00:13]}  Re8 {[%clk 0:00:25]} 38. g4 {[%clk 0:00:05]}  Re3+ {[%clk 0:00:25]} 39. Kh4 {[%clk 0:00:06]}  Rxh2# {[%clk 0:00:25]} 0-1


[Site "https://www.chess.com"]

[Event "Titled Tuesday Blitz July 4 Early 2023"]
[White "Singgih, Diajeng Theresa"]
[Black "Gatterer, Florian"]
[WhiteFideId "7104391"]
[BlackFideId "811688"]
[WhiteElo "2086"]
[BlackElo "2458"]
[Result "1-0"]
[Round "2"]
[TimeControl "180+2"]
[Date "2023.07.04"]
[WhiteClock "0:00:46"]
[BlackClock "0:00:18"]
[Board "225"]

1. e4 {[%clk 0:02:55]}  c5 {[%clk 0:03:00]} 2. Nf3 {[%clk 0:02:54]}  e6 {[%clk 0:03:00]} 3. d4 {[%clk 0:02:54]}  cxd4 {[%clk 0:03:01]} 4. Nxd4 {[%clk 0:02:53]}  Nf6 {[%clk 0:03:02]} 5. Nc3 {[%clk 0:02:52]}  Nc6 {[%clk 0:03:02]} 6. Nb3 {[%clk 0:02:53]}  Bb4 {[%clk 0:03:01]} 7. Bd3 {[%clk 0:02:49]}  d5 {[%clk 0:03:01]} 8. exd5 {[%clk 0:02:47]}  Nxd5 {[%clk 0:03:00]} 9. Bd2 {[%clk 0:02:46]}  O-O {[%clk 0:02:59]} 10. Nxd5 {[%clk 0:02:44]}  Bxd2+ {[%clk 0:02:58]} 11. Qxd2 {[%clk 0:02:44]}  Qxd5 {[%clk 0:02:58]} 12. O-O-O {[%clk 0:02:44]}  g6 {[%clk 0:02:40]} 13. Qc3 {[%clk 0:02:41]}  Qe5 {[%clk 0:02:37]} 14. Qd2 {[%clk 0:02:32]}  b6 {[%clk 0:02:37]} 15. Rhe1 {[%clk 0:02:32]}  Qf6 {[%clk 0:02:36]} 16. Re3 {[%clk 0:02:32]}  Bb7 {[%clk 0:02:34]} 17. Rf3 {[%clk 0:02:28]}  Qg7 {[%clk 0:02:33]} 18. Rh3 {[%clk 0:02:24]}  Ne5 {[%clk 0:02:20]} 19. Qg5 {[%clk 0:02:14]}  Rac8 {[%clk 0:01:58]} 20. Nd4 {[%clk 0:01:29]}  Nxd3+ {[%clk 0:01:44]} 21. Rdxd3 {[%clk 0:01:29]}  Be4 {[%clk 0:01:42]} 22. Rd2 {[%clk 0:01:29]}  Rfd8 {[%clk 0:01:28]} 23. c3 {[%clk 0:01:23]}  Rxd4 {[%clk 0:01:20]} 24. Rxd4 {[%clk 0:01:17]}  Qxd4 {[%clk 0:01:19]} 25. Qh4 {[%clk 0:01:03]}  Qe5 {[%clk 0:00:36]} 26. Qxh7+ {[%clk 0:00:56]}  Kf8 {[%clk 0:00:36]} 27. Qh8+ {[%clk 0:00:56]}  Qxh8 {[%clk 0:00:33]} 28. Rxh8+ {[%clk 0:00:53]}  Ke7 {[%clk 0:00:33]} 29. Rxc8 {[%clk 0:00:54]}  Bxg2 {[%clk 0:00:33]} 30. Rc7+ {[%clk 0:00:53]}  Kf6 {[%clk 0:00:34]} 31. Rxa7 {[%clk 0:00:54]}  Be4 {[%clk 0:00:34]} 32. a4 {[%clk 0:00:49]}  g5 {[%clk 0:00:34]} 33. Ra6 {[%clk 0:00:49]}  Ke5 {[%clk 0:00:33]} 34. Rxb6 {[%clk 0:00:49]}  f5 {[%clk 0:00:34]} 35. a5 {[%clk 0:00:48]}  f4 {[%clk 0:00:35]} 36. a6 {[%clk 0:00:48]}  g4 {[%clk 0:00:36]} 37. a7 {[%clk 0:00:47]}  g3 {[%clk 0:00:37]} 38. hxg3 {[%clk 0:00:46]}  fxg3 {[%clk 0:00:36]} 39. fxg3 {[%clk 0:00:46]}  Kf5 {[%clk 0:00:37]} 40. Rb5+ {[%clk 0:00:46]}  Kg4 {[%clk 0:00:18]} 41. Rb4 {[%clk 0:00:46]} 1-0


[Site "https://www.chess.com"]

[Event "Titled Tuesday Blitz July 4 Early 2023"]
[White "Jaivardhan Raj"]
[Black "Manukian, Artak"]
[WhiteFideId "25744437"]
[BlackFideId "13301373"]
[WhiteElo "2082"]
[BlackElo "2449"]
[Result "0-1"]
[Round "2"]
[TimeControl "180+2"]
[Date "2023.07.04"]
[WhiteClock "0:00:08"]
[BlackClock "0:00:16"]
[Board "227"]

1. e4 {[%clk 0:03:00]}  c6 {[%clk 0:02:19]} 2. d4 {[%clk 0:02:58]}  d5 {[%clk 0:02:20]} 3. Nd2 {[%clk 0:02:58]}  dxe4 {[%clk 0:02:20]} 4. Nxe4 {[%clk 0:02:59]}  Nf6 {[%clk 0:02:20]} 5. Nxf6+ {[%clk 0:02:58]}  exf6 {[%clk 0:02:21]} 6. Nf3 {[%clk 0:02:58]}  Bd6 {[%clk 0:02:22]} 7. Bd3 {[%clk 0:02:53]}  O-O {[%clk 0:02:19]} 8. O-O {[%clk 0:02:53]}  Bg4 {[%clk 0:02:18]} 9. h3 {[%clk 0:02:51]}  Bh5 {[%clk 0:02:17]} 10. c3 {[%clk 0:02:47]}  Re8 {[%clk 0:02:15]} 11. Be3 {[%clk 0:02:44]}  Nd7 {[%clk 0:02:14]} 12. c4 {[%clk 0:02:33]}  Qc7 {[%clk 0:02:13]} 13. g4 {[%clk 0:02:17]}  Bg6 {[%clk 0:02:12]} 14. Bxg6 {[%clk 0:02:16]}  hxg6 {[%clk 0:02:13]} 15. Qd2 {[%clk 0:02:14]}  g5 {[%clk 0:02:13]} 16. c5 {[%clk 0:02:09]}  Bf4 {[%clk 0:02:06]} 17. Rfe1 {[%clk 0:02:03]}  Nf8 {[%clk 0:02:04]} 18. Bxf4 {[%clk 0:01:54]}  gxf4 {[%clk 0:02:04]} 19. Nh4 {[%clk 0:01:49]}  g6 {[%clk 0:01:57]} 20. Ng2 {[%clk 0:01:42]}  g5 {[%clk 0:01:56]} 21. h4 {[%clk 0:01:36]}  Qd7 {[%clk 0:01:36]} 22. f3 {[%clk 0:01:21]}  Rxe1+ {[%clk 0:01:24]} 23. Rxe1 {[%clk 0:01:20]}  Ne6 {[%clk 0:01:23]} 24. Rd1 {[%clk 0:00:51]}  Rd8 {[%clk 0:01:19]} 25. hxg5 {[%clk 0:00:50]}  fxg5 {[%clk 0:01:19]} 26. Qc3 {[%clk 0:00:28]}  Nxd4 {[%clk 0:00:57]} 27. Kf2 {[%clk 0:00:26]}  Qd5 {[%clk 0:00:49]} 28. Ne1 {[%clk 0:00:20]}  Qe5 {[%clk 0:00:46]} 29. Nc2 {[%clk 0:00:19]}  Qe2+ {[%clk 0:00:19]} 30. Kg1 {[%clk 0:00:18]}  Nxf3+ {[%clk 0:00:19]} 31. Qxf3 {[%clk 0:00:17]}  Rxd1+ {[%clk 0:00:17]} 32. Qf1 {[%clk 0:00:08]}  Rxf1# {[%clk 0:00:16]} 0-1


[Site "https://www.chess.com"]